{"text_format":"1","workbook":"xlsx","n_sheets":4,"sheets":["DATA SOURCE","STATISTICS","APPOINTMENT","RESULT"],"not_rendered":{"charts":0,"images":0,"macros":1,"external_links":0,"defined_names":6,"comments":0,"pivot_tables":0},"unopened":[],"bounds":{"document_bytes":16777216,"sheet_cells":100000,"rows_first":2000,"rows_last":500,"rows_between":2000,"halvings":0,"cell_chars":16384,"cell_head_chars":4096},"cells_cut":0,"cells_raw":0,"read":"whole","date_system":"1900"}

{"sheet":"DATA SOURCE","index":0,"n_rows":304,"n_cols":13,"rows_kept":304,"cut":false,"hidden":false,"merged":[]}
[]
[]
[null,"S","NAME","HC/ID","TELE","EMAIL","APPOINTMENT"]
[{"$f":"ROW(A1)","v":1},1805,"أحمد محمد",null,null,null,"2021-01-25T17:00:00",null,"on time appointment",null,null,"Most Common Reasons for Rejection","NUMBER OF REASONE "]
[{"$f":"ROW(A3)","v":3},1806,"حسن احمد",null,null,null,"2021-01-28T17:00:00",null,"on time appointment",null,null,"No Answer",{"$f":"COUNTIF(I4:I304,\"No Answer\")","v":85}]
[4,1807,"محمود حسين",null,null,null,"2021-01-23T18:00:00",null,"on time appointment",null,null,"refused",{"$f":"COUNTIF(I4:I304,\"refused\")","v":28}]
[5,1808,"صادق مالك",null,null,null,null,null,"No Answer",null,null,"Pregnant",{"$f":"COUNTIF(I4:I304,\"Pregnant\")","v":4}]
[6,1809,"عبد الله السيد",null,null,null,null,null,"No Answer",null,null,"Breastfeeding",{"$f":"COUNTIF(I4:I304,\"Breastfeeding\")","v":3}]
[7,1810,"أسامه كامل",null,null,null,"2021-01-25T19:00:00",null,"on time appointment",null,null,"later need to think",{"$f":"COUNTIF(I4:I304,\"later need to think\")","v":37}]
[8,1811,"حسين قدري",null,null,null,"2021-01-23T10:00:00",null,"on time appointment",null,null,"Sick Patient",{"$f":"COUNTIF(I4:I304,\"Sick Patient\")","v":1}]
[9,1812,null,null,null,null,null,null,"Need more time to decide",null,null,"Scared of Side effects",{"$f":"COUNTIF(I4:I304,\"Scared of Side effects\")","v":0}]
[10,1813,null,null,null,null,null,null,"No Answer",null,null,"Unreachable",{"$f":"COUNTIF(I4:I304,\"Unreachable\")","v":6}]
[11,1814,null,null,null,null,null,null,"No Answer",null,null,"Not Interested",{"$f":"COUNTIF(I4:I304,\"Not Interested\")","v":3}]
[12,1815,null,null,null,null,null,null,"No Answer",null,null,"Need more time to decide",{"$f":"COUNTIF(I4:I304,\"Need more time to decide\")","v":5}]
[13,1816,null,null,null,null,"2021-01-28T19:00:00",null,"on time appointment",null,null,"Refusal by Clients Relatives",{"$f":"COUNTIF(I4:I304,\"Refusal by Clients Relatives\")","v":0}]
[14,1817,null,null,null,null,"Need more time to decide",null,"Need more time to decide",null,null,"Refusal of their doctor",{"$f":"COUNTIF(I4:I304,\"Refusal of their doctor\")","v":0}]
[15,1818,null,null,null,null,"No Answer",null,"No Answer",null,null,"need to consult to their physician",{"$f":"COUNTIF(I4:I304,\"need to consult to their physician\")","v":0}]
[16,1819,null,null,null,null,"2021-01-23T16:00:00",null,"on time appointment",null,null,"Severe Allergy",{"$f":"COUNTIF(I4:I304,\"Severe Allergy\")","v":2}]
[17,1820,null,null,null,null,"2021-01-23T16:00:00",null,"on time appointment",null,null,"Took/ Booked in other HC ",{"$f":"COUNTIF(I4:I304,\"Took/ Booked in other HC \")","v":0}]
[18,1821,null,null,null,null,"2021-01-23T09:00:00",null,"on time appointment",null,null,"Already taken the First Dose of Vaccine",{"$f":"COUNTIF(I4:I304,\"Already taken the First Dose of Vaccine\")","v":0}]
[19,1822,null,null,null,null,"No Answer",null,"No Answer",null,null,"Positive ",{"$f":"COUNTIF(I4:I304,\"Positive \")","v":1}]
[20,1823,null,null,null,null,"2021-01-28T11:00:00",null,"on time appointment",null,null,"Home Service",{"$f":"COUNTIF(I4:I304,\"Home Service\")","v":0}]
[21,1824,null,null,null,null,"2021-01-30T10:00:00",null,"on time appointment",null,null,"on chemotherapy",{"$f":"COUNTIF(I4:I304,\"on chemotherapy\")","v":0}]
[22,1825,null,null,null,null,"Not decided at this point of time",null,"Need more time to decide",null,null,"on IVF treatment",{"$f":"COUNTIF(I4:I304,\"on IVF treatment\")","v":0}]
[23,1826,null,null,null,null,"Not decided at this point of time",null,"Need more time to decide",null,null,"Already have appointment",{"$f":"COUNTIF(I4:I304,\"Already have appointment\")","v":0}]
[24,1827,null,null,null,null,"2021-01-28T18:00:00",null,"on time appointment",null,null,"Home quarantine",2]
[25,1828,null,null,null,null,"No Answer",null,"No Answer",null,null,"on time appointment",{"$f":"COUNTIF(I4:I304,\"on time appointment\")","v":85}]
[26,1829,null,null,null,null,"2021-01-25T18:00:00",null,"on time appointment",null,null,"NOT INVITED",{"$f":"COUNTIF(I4:I304,\"NOT INVITED\")","v":39}]
[27,1830,null,null,null,null,"No Answer",null,"No Answer",null,null,"TOTAL REJECTION",{"$f":"SUM(M5:M26)","v":177}]
[28,1831,null,null,null,null," Need more time to decide",null,"Need more time to decide",null,null,"TOTAL",{"$f":"SUM(M5:M28)","v":301}]
[29,1832,null,null,null,null,"2021-02-01T16:00:00",null,"on time appointment"]
[30,1833,null,null,null,null,"No Answer",null,"No Answer"]
[31,1834,null,null,null,null,"Unreachable",null,"Unreachable"]
[32,1835,null,null,null,null,"Not Interested",null,"Not Interested"]
[33,1836,null,null,null,null,"refused",null,"refused"]
[34,1837,null,null,null,null,"Not Interested",null,"Not Interested"]
[35,1838,null,null,null,null,"No Answer",null,"No Answer"]
[36,1839,null,null,null,null,"refused",null,"refused"]
[37,1840,null,null,null,null,"No Answer",null,"No Answer"]
[38,1841,null,null,null,null,"No Answer",null,"No Answer"]
[39,1842,null,null,null,null,"2021-01-28T14:00:00",null,"on time appointment"]
[40,1843,null,null,null,null,"2021-02-18T17:00:00",null,"on time appointment"]
[41,1844,null,null,null,null,"No Answer",null,"No Answer"]
[42,1845,null,null,null,null,"refused",null,"refused"]
[43,1846,null,null,null,null,"No Answer",null,"No Answer"]
[44,1847,null,null,null,null,"2021-01-25T18:00:00",null,"on time appointment"]
[45,1848,null,null,null,null,"No Answer",null,"No Answer"]
[46,1849,null,null,null,null,"No Answer",null,"No Answer"]
[47,1850,null,null,null,null,"No Answer",null,"No Answer"]
[48,1851,null,null,null,null,"No Answer",null,"No Answer"]
[49,1852,null,null,null,null,"2021-01-24T18:00:00",null,"on time appointment"]
[50,1853,null,null,null,null,"No Answer",null,"No Answer"]
[51,1854,null,null,null,null,"No Answer",null,"No Answer"]
[52,1855,null,null,null,null,"later",null,"later need to think"]
[53,1856,null,null,null,null,"No Answer",null,"No Answer"]
[54,1857,null,null,null,null,"No Answer",null,"No Answer"]
[55,1858,null,null,null,null,"Later",null,"later need to think"]
[56,1859,null,null,null,null,"Later",null,"later need to think"]
[57,1860,null,null,null,null,"2021-01-24T16:00:00",null,"on time appointment"]
[58,1861,null,null,null,null,"No Answer",null,"No Answer"]
[59,1862,null,null,null,null,"Later",null,"later need to think"]
[60,1863,null,null,null,null,"No Answer",null,"No Answer"]
[61,1864,null,null,null,null,"No Answer",null,"No Answer"]
[62,1865,null,null,null,null,"No Answer",null,"No Answer"]
[63,1866,null,null,null,null,"No Answer",null,"No Answer"]
[64,1867,null,null,null,null,"Not in Service",null,"Unreachable"]
[65,1868,null,null,null,null,"No Answer",null,"No Answer"]
[66,1869,null,null,null,null,"No Answer",null,"No Answer"]
[{"$f":"ROW(A67)","v":67},1870,null,null,null,null,"No Answer",null,"No Answer"]
[68,1871,null,null,null,null,"No Answer",null,"No Answer"]
[69,1872,null,null,null,null,"No Answer",null,"No Answer"]
[70,1873,null,null,null,null,"No Answer",null,"No Answer"]
[71,1874,null,null,null,null,"No Answer",null,"No Answer"]
[72,1875,null,null,null,null,"No Answer",null,"No Answer"]
[73,1876,null,null,null,null,"No Answer",null,"No Answer"]
[74,1877,null,null,null,null,"No Answer",null,"No Answer"]
[75,1878,null,null,null,null,"Later",null,"later need to think"]
[76,1879,null,null,null,null,"No Answer",null,"No Answer"]
[77,1880,null,null,null,null,"Not Interested",null,"Not Interested"]
[78,1881,null,null,null,null,"No Answer",null,"No Answer"]
[79,1882,null,null,null,null,"No Answer",null,"No Answer"]
[80,1883,null,null,null,null,"later ",null,"later need to think"]
[81,1884,null,null,null,null,"No Answer",null,"No Answer"]
[82,1885,null,null,null,null,"REFUSE",null,"refused"]
[83,1886,null,null,null,null,"No Answer",null,"No Answer"]
[84,1887,null,null,null,null,"Saturday 23.01.2021  4:00 pm ",null,"on time appointment"]
[85,1888,null,null,null,null,"Saturday 23.01.2021  10:00 am ",null,"on time appointment"]
[86,1889,null,null,null,null,"Saturday   30.01.2021 10:00 am ",null,"on time appointment"]
[87,1890,null,null,null,null,"later ",null,"later need to think"]
[88,1891,null,null,null,null,"later ",null,"later need to think"]
[89,1892,null,null,null,null,"Saturday 23.01.2021  9:00 am ",null,"on time appointment"]
[90,1893,null,null,null,null,"No Answer",null,"No Answer"]
[91,1894,null,null,null,null,"later ",null,"later need to think"]
[92,1895,null,null,null,null,"No Answer",null,"No Answer"]
[93,1896,null,null,null,null,"sick ",null,"Sick Patient"]
[94,1897,null,null,null,null,"Sunday  24.01.2021 pm 6:00",null,"on time appointment"]
[95,1898,null,null,null,null,"Saturday 30.01.2021  4:00 pm ",null,"on time appointment"]
[96,1899,null,null,null,null,"Wednesday 27.01.2021 7:00 pm ",null,"on time appointment"]
[97,1900,null,null,null,null,"later   need to thinck   ",null,"later need to think"]
[98,1901,null,null,null,null,"later   need to thinck",null,"later need to think"]
[99,1902,null,null,null,null,"Friday 29.01.2021  6:00 pm ",null,"on time appointment"]
[100,1903,null,null,null,null,"later need to thinck  ",null,"later need to think"]
[101,1904,null,null,null,null,"Thursday  04.02.2021 2:00 pm ",null,"on time appointment"]
[102,1905,null,null,null,null,"thursday  28.01.2021 4:00 pm ",null,"on time appointment"]
[103,1906,null,null,null,null,"later   need  to thinck ",null,"later need to think"]
[104,1907,null,null,null,null,"No Answer",null,"No Answer"]
[105,1908,null,null,null,null," Wednesday  27.01.2021 6:00 pm ",null,"on time appointment"]
[106,1909,null,null,null,null,"pregnancy ",null,"Pregnant"]
[107,1910,null,null,null,null,"REFUSE",null,"refused"]
[108,1911,null,null,null,null,"later  ",null,"later need to think"]
[109,1912,null,null,null,null,"pregnancy ",null,"Pregnant"]
[110,1913,null,null,null,null,"Sunday  24.01.2021 pm 8:00",null,"on time appointment"]
[111,1914,null,null,null,null,"No Answer",null,"No Answer"]
[112,1915,null,null,null,null,"No Answer",null,"No Answer"]
[113,1916,null,null,null,null,"later   need to thinck",null,"later need to think"]
[114,1917,null,null,null,null,"later need to thinck  ",null,"later need to think"]
[115,1918,null,null,null,null,"No Answer",null,"No Answer"]
[116,1919,null,null,null,null,"No Answer",null,"No Answer"]
[117,1920,null,null,null,null,"Saturday 23.01.2021 10:00 am ",null,"on time appointment"]
[118,1921,null,null,null,null,"refused ",null,"refused"]
[119,1922,null,null,null,null,"thurday 28.01.2021 8:00pm ",null,"on time appointment"]
[120,1923,null,null,null,null,"No Answer",null,"No Answer"]
[121,1924,null,null,null,null,"Friday 22.01.2021  4:00 pm ",null,"on time appointment"]
[122,1925,null,null,null,null,"refused ",null,"refused"]
[123,1926,null,null,null,null,"No Answer",null,"No Answer"]
[124,1927,null,null,null,null,"Saturday   23.01.2021 3:00 pm ",null,"on time appointment"]
[125,1928,null,null,null,null,"refused ",null,"refused"]
[126,1929,null,null,null,null,"later need to thinck  ",null,"later need to think"]
[127,1930,null,null,null,null,"later need to thinck  ",null,"later need to think"]
[128,1931,null,null,null,null,"Sunday 07.02.2021 6:00 pm ",null,"on time appointment"]
[129,1932,null,null,null,null,"LATER  TO THINCK ",null,"later need to think"]
[130,1933,null,null,null,null,null,null,"refused"]
[{"$f":"ROW(A131)","v":131},1934,null,null,null,null,"refused ",null,"refused"]
[132,1935,null,null,null,null,"Sunday  24.01.2021 7:00 pm ",null,"on time appointment"]
[133,1936,null,null,null,null,"later need to thinck  ",null,"later need to think"]
[134,1937,null,null,null,null,"later need to thinck  ",null,"later need to think"]
[135,1938,null,null,null,null,"later need to thinck  ",null,"later need to think"]
[136,1939,null,null,null,null,"Monday  25.01.2021 pm 3:30 ",null,"on time appointment"]
[137,1940,null,null,null,null,"thurdsday 28.01.2021 4:00 pm  ",null,"on time appointment"]
[138,1941,null,null,null,null,"Thursday 28.01.2021 pm  6:00 ",null,"on time appointment"]
[139,1942,null,null,null,null,"later  need  thinck ",null,"later need to think"]
[140,1943,null,null,null,null,"feeding   ",null,"Breastfeeding"]
[141,1944,null,null,null,null,"feeding   ",null,"Breastfeeding"]
[142,1945,null,null,null,null,"No Answer",null,"on time appointment"]
[143,1946,null,null,null,null,"later need to thinck  ",null,"later need to think"]
[144,1947,null,null,null,null,"Thursday 04.02.2021 11:30am ",null,"on time appointment"]
[145,1948,null,null,null,null,"No Answer",null,"No Answer"]
[146,1949,null,null,null,null,"wednesday 27.01.2021 7:30  ",null,"on time appointment"]
[147,1950,null,null,null,null,"later need to thinck  ",null,"later need to think"]
[148,1951,null,null,null,null,"No Answer",null,"No Answer"]
[149,1952,null,null,null,null,"later need to thinck  ",null,"later need to think"]
[150,1953,null,null,null,null,null,null,"NOT INVITED"]
[151,1954,null,null,null,null,null,null,"NOT INVITED"]
[152,1955,null,null,null,null,"24/01/2021 _ 02:15 pm ",null,"on time appointment"]
[153,1956,null,null,null,null,"28/01/2021 _ 06:00 pm ",null,"on time appointment"]
[154,1957,null,null,null,null,"30/01/2021 _05:00 pm ",null,"on time appointment"]
[155,1958,null,null,null,null,"NO  Answer",null,"No Answer"]
[156,1959,null,null,null,null,"NO  Answer",null,"No Answer"]
[157,1960,null,null,null,null,"LATER ",null,"later need to think"]
[158,1961,null,null,null,null,"has  appointment  27/01/21",null,"on time appointment"]
[159,1962,null,null,null,null,"25/01/2021 _ 07:30 pm ",null,"on time appointment"]
[160,1963,null,null,null,null,"26/01/2021_09:00 pm ",null,"on time appointment"]
[161,1964,null,null,null,null,"26/01/2021_08:00 pm ",null,"on time appointment"]
[162,1965,null,null,null,null,"28/01/2021_08:00 pm ",null,"on time appointment"]
[163,1966,null,null,null,null,"05/02/2021_ 05 :00 pm ",null,"on time appointment"]
[164,1967,null,null,null,null,"NO  Answer",null,"No Answer"]
[165,1968,null,null,null,null,"NO  Answer",null,"No Answer"]
[166,1969,null,null,null,null,"LATER ",null,"later need to think"]
[167,1970,null,null,null,null,"04/02/2021_6:00 pm ",null,"on time appointment"]
[168,1971,null,null,null,null,"LATER  ",null,"later need to think"]
[169,1972,null,null,null,null,"HOME QUARANTINE    ",null,"Home quarantine"]
[170,1973,null,null,null,null,"LATER ",null,"later need to think"]
[171,1974,null,null,null,null,"NO  Answer",null,"No Answer"]
[172,1975,null,null,null,null,"25/02/2021 _05:00 PM",null,"on time appointment"]
[173,1976,null,null,null,null,"REFUSE",null,"refused"]
[174,1977,null,null,null,null,"OUT OF REUCH ",null,"Unreachable"]
[175,1978,null,null,null,null,"29/01/2021_10:00 AM ",null,"on time appointment"]
[176,1979,null,null,null,null,"NO  Answer",null,"No Answer"]
[177,1980,null,null,null,null,"SEVERE  ALLERGY",null,"Severe Allergy"]
[178,1981,null,null,null,null,"04/02/2021_ 07:00 PM ",null,"on time appointment"]
[179,1982,null,null,null,null,"NO  Answer",null,"No Answer"]
[180,1983,null,null,null,null,"POSITVE ",null,"Positive "]
[181,1984,null,null,null,null," ALLERGY",null,"Severe Allergy"]
[182,1985,null,null,null,null,"HOME QUARANTINE ",null,"Home quarantine"]
[183,1986,null,null,null,null,"LATER ",null,"later need to think"]
[184,1987,null,null,null,null,"LATER",null,"later need to think"]
[185,1988,null,null,null,null,"25/01/2021_ 08:00 PM ",null,"on time appointment"]
[186,1989,null,null,null,null,"LATER ",null,"later need to think"]
[187,1990,null,null,null,null,"NO  Answer",null,"No Answer"]
[188,1991,null,null,null,null,"01/02/2021_05:00 PM ",null,"on time appointment"]
[189,1992,null,null,null,null,"LATER ",null,"later need to think"]
[190,1993,null,null,null,null,"NO  Answer",null,"No Answer"]
[191,1994,null,null,null,null,"NO  Answer",null,"No Answer"]
[192,1996,null,null,null,null,"28/01/2021_ 06:00 PM ",null,"on time appointment"]
[193,1997,null,null,null,null,"01/02/2021_06:00 PM ",null,"on time appointment"]
[194,1998,null,null,null,null,"pregnant  ",null,"Pregnant"]
[{"$f":"ROW(A195)","v":195},1999,null,null,null,null,"NO  Answer",null,"No Answer"]
[196,2000,null,null,null,null,"2021-02-01T09:00:00",null,"on time appointment"]
[197,2001,null,null,null,null,"NO  Answer",null,"No Answer"]
[198,2002,null,null,null,null,"NO  Answer",null,"No Answer"]
[199,2003,null,null,null,null,"01/02/2021 _ 05:00 PM ",null,"on time appointment"]
[200,2004,null,null,null,null,"LATER",null,"later need to think"]
[201,2005,null,null,null,null,"NO  Answer",null,"No Answer"]
[202,2006,null,null,null,null,"OUT OF REUCH ",null,"Unreachable"]
[203,2007,null,null,null,null,"NO  Answer",null,"No Answer"]
[204,2008,null,null,null,null,"31/01/2021_06:00 pm ",null,"on time appointment"]
[205,2009,null,null,null,null,"LATER",null,"later need to think"]
[206,2010,null,null,null,null,"NO  Answer",null,"No Answer"]
[207,2011,null,null,null,null,"LATER",null,"later need to think"]
[208,2012,null,null,null,null,"REFUSE",null,"refused"]
[209,2013,null,null,null,null,null,null,"NOT INVITED"]
[210,2014,null,null,null,null,null,null,"NOT INVITED"]
[211,2015,null,null,null,null,null,null,"NOT INVITED"]
[212,2016,null,null,null,null,null,null,"NOT INVITED"]
[213,2017,null,null,null,null,null,null,"NOT INVITED"]
[214,2018,null,null,null,null,null,null,"NOT INVITED"]
[215,2019,null,null,null,null,null,null,"NOT INVITED"]
[216,2020,null,null,null,null,null,null,"NOT INVITED"]
[217,2021,null,null,null,null,null,null,"NOT INVITED"]
[218,2022,null,null,null,null,null,null,"NOT INVITED"]
[219,2023,null,null,null,null,null,null,"NOT INVITED"]
[220,2024,null,null,null,null,null,null,"NOT INVITED"]
[221,2025,null,null,null,null,null,null,"NOT INVITED"]
[222,2026,null,null,null,null,null,null,"NOT INVITED"]
[223,2027,null,null,null,null,null,null,"NOT INVITED"]
[224,2028,null,null,null,null,null,null,"NOT INVITED"]
[225,2029,null,null,null,null,null,null,"NOT INVITED"]
[226,2030,null,null,null,null,"22/1/2021-10 AM",null,"on time appointment"]
[227,2031,null,null,null,null,"No Answer",null,"No Answer"]
[228,2032,null,null,null,null,"No Answer",null,"No Answer"]
[229,2033,null,null,null,null,"24/1/2021-7PM",null,"on time appointment"]
[230,2034,null,null,null,null,"No Answer",null,"No Answer"]
[231,2035,null,null,null,null,"30/1/2021- 9AM",null,"on time appointment"]
[232,2036,null,null,null,null,"No Answer",null,"No Answer"]
[233,2037,null,null,null,null,"23/1/2021-12PM",null,"on time appointment"]
[234,2038,null,null,null,null,"refused",null,"refused"]
[235,2039,null,null,null,null,"refused",null,"refused"]
[236,2040,null,null,null,null,"No Answer",null,"No Answer"]
[237,2041,null,null,null,null,"Breastfeeding",null,"Breastfeeding"]
[238,2042,null,null,null,null,"No Answer",null,"No Answer"]
[239,2043,null,null,null,null,"23/1/2021-11AM",null,"on time appointment"]
[240,2044,null,null,null,null,"No Answer",null,"No Answer"]
[241,2045,null,null,null,null,"No Answer",null,"No Answer"]
[242,2046,null,null,null,null,"23/1/2021-9AM ",null,"on time appointment"]
[243,2047,null,null,null,null,"Pregnant",null,"Pregnant"]
[244,2048,null,null,null,null,"refused",null,"refused"]
[245,2049,null,null,null,null,"refused",null,"refused"]
[246,2050,null,null,null,null,"refused",null,"refused"]
[247,2051,null,null,null,null,"23/1/2021-11am",null,"on time appointment"]
[248,2052,null,null,null,null,"1/03/2021-8pm",null,"on time appointment"]
[249,2053,null,null,null,null,"refused",null,"refused"]
[250,2054,null,null,null,null,"refused",null,"refused"]
[251,2055,null,null,null,null,"refused",null,"refused"]
[252,2056,null,null,null,null,"23/1/2021-9AM ",null,"on time appointment"]
[253,2057,null,null,null,null,"22/1/2021-6pm",null,"on time appointment"]
[254,2058,null,null,null,null,"refused",null,"refused"]
[255,2059,null,null,null,null,"No Answer",null,"No Answer"]
[256,2060,null,null,null,null,"refused",null,"refused"]
[257,2061,null,null,null,null,"30/1/2021-12pm",null,"on time appointment"]
[258,2062,null,null,null,null,"refused",null,"refused"]
[{"$f":"ROW(A259)","v":259},2063,null,null,null,null,"No Answer",null,"No Answer"]
[260,2064,null,null,null,null,"refused",null,"refused"]
[261,2065,null,null,null,null,"No Answer",null,"No Answer"]
[262,2066,null,null,null,null,"11/2/2021-5pm",null,"on time appointment"]
[263,2067,null,null,null,null,"28/1/2021-7pm",null,"on time appointment"]
[264,2068,null,null,null,null,"No Answer",null,"No Answer"]
[265,2069,null,null,null,null,"Person unavailable",null,"Unreachable"]
[266,2070,null,null,null,null,"30/1/2021-7pm",null,"on time appointment"]
[267,2071,null,null,null,null,"11/2/2021-6pm",null,"on time appointment"]
[268,2072,null,null,null,null,"23/1/2021-8am",null,"on time appointment"]
[269,2073,null,null,null,null,"refused",null,"refused"]
[270,2074,null,null,null,null,"24/1/2021-5pm",null,"on time appointment"]
[271,2075,null,null,null,null,"23/1/2021-6pm",null,"on time appointment"]
[272,2076,null,null,null,null,"refused",null,"refused"]
[273,2077,null,null,null,null,"No Answer",null,"No Answer"]
[274,2078,null,null,null,null,"Wrong Contact Number",null,"Unreachable"]
[275,2079,null,null,null,null,"24/1/2021-9pm",null,"on time appointment"]
[276,2080,null,null,null,null,"25/1/2021-5pm",null,"on time appointment"]
[277,2081,null,null,null,null,"refused",null,"refused"]
[278,2082,null,null,null,null,"refused",null,"refused"]
[279,2083,null,null,null,null,"22/1/2021-8.30 am",null,"on time appointment"]
[280,2084,null,null,null,null,"29/1/2021-9am",null,"on time appointment"]
[281,2085,null,null,null,null,"No Answer",null,"No Answer"]
[282,2086,null,null,null,null,"No Answer",null,"No Answer"]
[283,2087,null,null,null,null,null,null,"NOT INVITED"]
[284,2088,null,null,null,null,null,null,"NOT INVITED"]
[285,2089,null,null,null,null,null,null,"NOT INVITED"]
[286,2090,null,null,null,null,null,null,"NOT INVITED"]
[287,2091,null,null,null,null,null,null,"NOT INVITED"]
[288,2092,null,null,null,null,null,null,"NOT INVITED"]
[289,2093,null,null,null,null,null,null,"NOT INVITED"]
[290,2094,null,null,null,null,null,null,"NOT INVITED"]
[291,2095,null,null,null,null,null,null,"NOT INVITED"]
[292,2096,null,null,null,null,null,null,"NOT INVITED"]
[293,2097,null,null,null,null,null,null,"NOT INVITED"]
[294,2098,null,null,null,null,null,null,"NOT INVITED"]
[295,2099,null,null,null,null,null,null,"NOT INVITED"]
[296,2100,null,null,null,null,null,null,"NOT INVITED"]
[297,2101,null,null,null,null,null,null,"NOT INVITED"]
[298,2102,null,null,null,null,null,null,"NOT INVITED"]
[299,2103,null,null,null,null,null,null,"NOT INVITED"]
[300,2104,null,null,null,null,null,null,"NOT INVITED"]
[301,2105,null,null,null,null,null,null,"NOT INVITED"]
[302,2106,null,null,null,null,null,null,"NOT INVITED"]

{"sheet":"STATISTICS","index":1,"n_rows":33,"n_cols":6,"rows_kept":33,"cut":false,"hidden":false,"merged":[]}
[]
[]
[]
[null,null,null,"Total Number of Clients Invited by calling","Total Number of Clients Rejected the invitation","Total Number of Clients accepted and Booked "]
[null,null,null,{"$f":"'DATA SOURCE'!M27+'DATA SOURCE'!M29","v":262},{"$f":"'DATA SOURCE'!M28","v":39},{"$f":"'DATA SOURCE'!M27","v":85}]
[]
[]
[]
[]
[null,null,null,"Most Common Reasons for Rejection","NUMBER OF REASONE "]
[null,null,null,"No Answer",{"$f":"'DATA SOURCE'!M5","v":85}]
[null,null,null,"refused",{"$f":"'DATA SOURCE'!M6","v":28}]
[null,null,null,"Pregnant",{"$f":"'DATA SOURCE'!M7","v":4}]
[null,null,null,"Breastfeeding",{"$f":"'DATA SOURCE'!M8","v":3}]
[null,null,null,"later need to think",{"$f":"'DATA SOURCE'!M9","v":37}]
[null,null,null,"Sick Patient",{"$f":"'DATA SOURCE'!M10","v":1}]
[null,null,null,"Scared of Side effects",{"$f":"'DATA SOURCE'!M11","v":0}]
[null,null,null,"Unreachable",{"$f":"'DATA SOURCE'!M12","v":6}]
[null,null,null,"Not Interested",{"$f":"'DATA SOURCE'!M13","v":3}]
[null,null,null,"Need more time to decide",{"$f":"'DATA SOURCE'!M14","v":5}]
[null,null,null,"Refusal by Clients Relatives",{"$f":"'DATA SOURCE'!M15","v":0}]
[null,null,null,"Refusal of their doctor",{"$f":"'DATA SOURCE'!M16","v":0}]
[null,null,null,"need to consult to their physician",{"$f":"'DATA SOURCE'!M17","v":0}]
[null,null,null,"Severe Allergy",{"$f":"'DATA SOURCE'!M18","v":2}]
[null,null,null,"Took/ Booked in other HC ",{"$f":"'DATA SOURCE'!M19","v":0}]
[null,null,null,"Already taken the First Dose of Vaccine",{"$f":"'DATA SOURCE'!M20","v":0}]
[null,null,null,"Positive ",{"$f":"'DATA SOURCE'!M21","v":1}]
[null,null,null,"Home Service",{"$f":"'DATA SOURCE'!M22","v":0}]
[null,null,null,"on chemotherapy",{"$f":"'DATA SOURCE'!M23","v":0}]
[null,null,null,"on IVF treatment",{"$f":"'DATA SOURCE'!M24","v":0}]
[null,null,null,"Already have appointment",{"$f":"'DATA SOURCE'!M25","v":0}]
[null,null,null,"Home quarantine",{"$f":"'DATA SOURCE'!M26","v":2}]
[null,null,null,"TOTAL",{"$f":"SUM(E11:E32)","v":177}]

{"sheet":"APPOINTMENT","index":2,"n_rows":1,"n_cols":6,"rows_kept":1,"cut":false,"hidden":false,"merged":[]}
["S","NAME","HC/ID","TELE","EMAIL","APPOINTMENT"]

{"sheet":"RESULT","index":3,"n_rows":44,"n_cols":8,"rows_kept":44,"cut":false,"hidden":false,"merged":[]}
[]
[]
[null,null,"S","NAME","HC/ID","TELE","EMAIL","APPOINTMENT"]
[null,{"$f":"ROW(B2)","v":2},1955,null,null,null,null,"24/01/2021 _ 02:15 pm "]
[null,3,1956,null,null,null,null,"28/01/2021 _ 06:00 pm "]
[null,4,1957,null,null,null,null,"30/01/2021 _05:00 pm "]
[null,5,1961,null,null,null,null,"has  appointment  27/01/21"]
[null,6,1962,null,null,null,null,"25/01/2021 _ 07:30 pm "]
[null,7,1963,null,null,null,null,"26/01/2021_09:00 pm "]
[null,8,1964,null,null,null,null,"26/01/2021_08:00 pm "]
[null,9,1965,null,null,null,null,"28/01/2021_08:00 pm "]
[null,10,1966,null,null,null,null,"05/02/2021_ 05 :00 pm "]
[null,11,1970,null,null,null,null,"04/02/2021_6:00 pm "]
[null,12,1975,null,null,null,null,"25/02/2021 _05:00 PM"]
[null,13,1978,null,null,null,null,"29/01/2021_10:00 AM "]
[null,14,1981,null,null,null,null,"04/02/2021_ 07:00 PM "]
[null,15,1988,null,null,null,null,"25/01/2021_ 08:00 PM "]
[null,16,1991,null,null,null,null,"01/02/2021_05:00 PM "]
[null,17,1996,null,null,null,null,"28/01/2021_ 06:00 PM "]
[null,18,1997,null,null,null,null,"01/02/2021_06:00 PM "]
[null,19,2003,null,null,null,null,"01/02/2021 _ 05:00 PM "]
[null,20,2008,null,null,null,null,"31/01/2021_06:00 pm "]
[null,21,2030,null,null,null,null,"22/1/2021-10 AM"]
[null,22,2033,null,null,null,null,"24/1/2021-7PM"]
[null,23,2035,null,null,null,null,"30/1/2021- 9AM"]
[null,24,2037,null,null,null,null,"23/1/2021-12PM"]
[null,25,2043,null,null,null,null,"23/1/2021-11AM"]
[null,26,2046,null,null,null,null,"23/1/2021-9AM "]
[null,27,2051,null,null,null,null,"23/1/2021-11am"]
[null,28,2052,null,null,null,null,"1/03/2021-8pm"]
[null,29,2056,null,null,null,null,"23/1/2021-9AM "]
[null,30,2057,null,null,null,null,"22/1/2021-6pm"]
[null,31,2061,null,null,null,null,"30/1/2021-12pm"]
[null,32,2066,null,null,null,null,"11/2/2021-5pm"]
[null,33,2067,null,null,null,null,"28/1/2021-7pm"]
[null,34,2070,null,null,null,null,"30/1/2021-7pm"]
[null,35,2071,null,null,null,null,"11/2/2021-6pm"]
[null,36,2072,null,null,null,null,"23/1/2021-8am"]
[null,37,2074,null,null,null,null,"24/1/2021-5pm"]
[null,38,2075,null,null,null,null,"23/1/2021-6pm"]
[null,39,2079,null,null,null,null,"24/1/2021-9pm"]
[null,40,2080,null,null,null,null,"25/1/2021-5pm"]
[null,41,2083,null,null,null,null,"22/1/2021-8.30 am"]
[null,42,2084,null,null,null,null,"29/1/2021-9am"]